[Event "Late-Titled-Tuesday-Blitz-December-26-2023"]
[Site "Chess.com"]
[Date "2023.12.26"]
[Round "6"]
[White "karinachess1"]
[Black "Flaccidmoves"]
[Result "1-0"]
[WhiteElo "2556"]
[BlackElo "2391"]
[TimeControl "180+1"]
[EndTime "15:07:31 PST"]
[Termination "karinachess1 won by resignation"]

1. d4 {[%clk 0:03:00.9]} 1... Nf6 {[%clk 0:02:57.8]} 2. c4 {[%clk 0:03:00.7]}
2... g6 {[%clk 0:02:58.4]} 3. Nc3 {[%clk 0:02:59.9]} 3... d5 {[%clk 0:02:58.9]}
4. cxd5 {[%clk 0:02:56.3]} 4... Nxd5 {[%clk 0:02:59.8]} 5. e4 {[%clk 0:02:56.6]}
5... Nxc3 {[%clk 0:03:00.2]} 6. bxc3 {[%clk 0:02:57.5]} 6... Bg7 {[%clk
0:03:00.5]} 7. Be3 {[%clk 0:02:57.7]} 7... O-O {[%clk 0:03:00.3]} 8. Bc4 {[%clk
0:02:55.6]} 8... c5 {[%clk 0:03:00]} 9. Ne2 {[%clk 0:02:55.6]} 9... cxd4 {[%clk
0:02:48.6]} 10. cxd4 {[%clk 0:02:56.5]} 10... Qa5+ {[%clk 0:02:48.5]} 11. Qd2
{[%clk 0:02:51]} 11... Qxd2+ {[%clk 0:02:47.6]} 12. Kxd2 {[%clk 0:02:51.3]}
12... Nc6 {[%clk 0:02:48.1]} 13. Rhd1 {[%clk 0:02:43.9]} 13... Rd8 {[%clk
0:02:26.1]} 14. Ke1 {[%clk 0:02:43.9]} 14... b6 {[%clk 0:02:23]} 15. Rac1 {[%clk
0:02:33.9]} 15... Bb7 {[%clk 0:02:20.2]} 16. f3 {[%clk 0:02:15.4]} 16... Rac8
{[%clk 0:02:15.1]} 17. d5 {[%clk 0:01:56.4]} 17... Ne5 {[%clk 0:02:08.6]} 18.
Bb3 {[%clk 0:01:56.6]} 18... Rxc1 {[%clk 0:02:04.8]} 19. Bxc1 {[%clk 0:01:53]}
19... Ba6 {[%clk 0:02:01.5]} 20. Ba3 {[%clk 0:01:46.4]} 20... Nd3+ {[%clk
0:01:33.5]} 21. Kd2 {[%clk 0:01:44.2]} 21... Nc5 {[%clk 0:01:28.5]} 22. Ke3
{[%clk 0:01:35.2]} 22... Bxe2 {[%clk 0:00:54.9]} 23. Kxe2 {[%clk 0:01:34.3]}
23... Kf8 {[%clk 0:00:55.5]} 24. Rc1 {[%clk 0:01:26.9]} 24... Be5 {[%clk
0:00:50.9]} 25. g3 {[%clk 0:01:20.6]} 25... Bd6 {[%clk 0:00:48.7]} 26. Bb2
{[%clk 0:01:19]} 26... f6 {[%clk 0:00:46]} 27. Bc4 {[%clk 0:01:12.8]} 27... Be5
{[%clk 0:00:41.5]} 28. Ba3 {[%clk 0:01:09.5]} 28... Bd6 {[%clk 0:00:39.2]} 29.
Bxc5 {[%clk 0:01:04.5]} 29... Bxc5 {[%clk 0:00:38.8]} 30. Bb5 {[%clk 0:01:05.1]}
30... f5 {[%clk 0:00:36.9]} 31. Bc6 {[%clk 0:01:04.4]} 31... fxe4 {[%clk
0:00:35.7]} 32. fxe4 {[%clk 0:01:05.3]} 32... Kg7 {[%clk 0:00:31.8]} 33. e5
{[%clk 0:00:54.2]} 33... Bd4 {[%clk 0:00:30.5]} 34. e6 {[%clk 0:00:49.9]} 34...
Bc5 {[%clk 0:00:30.2]} 35. Kd3 {[%clk 0:00:42]} 35... Rf8 {[%clk 0:00:29.6]} 36.
Rc2 {[%clk 0:00:32.8]} 36... Bd6 {[%clk 0:00:25.2]} 37. Kc4 {[%clk 0:00:30.7]}
37... a6 {[%clk 0:00:23.5]} 38. Bb7 {[%clk 0:00:29.5]} 38... b5+ {[%clk
0:00:20.7]} 39. Kd3 {[%clk 0:00:29.1]} 39... a5 {[%clk 0:00:21.2]} 40. Bc6
{[%clk 0:00:27.9]} 40... b4 {[%clk 0:00:20.8]} 41. Kc4 {[%clk 0:00:28.4]} 41...
Rf3 {[%clk 0:00:19.4]} 42. Ba4 {[%clk 0:00:18.3]} 42... Ra3 {[%clk 0:00:18.8]}
43. Kb5 {[%clk 0:00:18.7]} 43... Kf6 {[%clk 0:00:17.9]} 44. Bb3 {[%clk
0:00:18.9]} 44... Ke5 {[%clk 0:00:17.6]} 45. Re2+ {[%clk 0:00:15.4]} 45... Kd4
{[%clk 0:00:17.5]} 46. Rf2 {[%clk 0:00:09.5]} 46... h5 {[%clk 0:00:15.4]} 47.
Re2 {[%clk 0:00:04.7]} 47... g5 {[%clk 0:00:15.1]} 48. Rc2 {[%clk 0:00:05]}
48... h4 {[%clk 0:00:14.4]} 49. gxh4 {[%clk 0:00:04.9]} 49... gxh4 {[%clk
0:00:13.8]} 50. Rc4+ {[%clk 0:00:05.8]} 50... Kd3 {[%clk 0:00:14.2]} 51. Rxh4
{[%clk 0:00:06.1]} 51... Bxh2 {[%clk 0:00:14.4]} 52. Rxh2 {[%clk 0:00:06]} 52...
Kd4 {[%clk 0:00:11.8]} 53. Rd2+ {[%clk 0:00:05.5]} 53... Ke5 {[%clk 0:00:11.8]}
54. d6 {[%clk 0:00:05.6]} 54... exd6 {[%clk 0:00:12.7]} 55. e7 {[%clk 0:00:06]}
55... a4 {[%clk 0:00:13.2]} 56. e8=Q+ {[%clk 0:00:06.6]} 1-0

[Event "Late-Titled-Tuesday-Blitz-December-26-2023"]
[Site "Chess.com"]
[Date "2023.12.26"]
[Round "6"]
[White "nickmatta"]
[Black "Sanyura"]
[Result "1-0"]
[WhiteElo "2507"]
[BlackElo "2604"]
[TimeControl "180+1"]
[EndTime "15:07:35 PST"]
[Termination "nickmatta won on time"]

1. Nf3 {[%clk 0:03:00.9]} 1... Nf6 {[%clk 0:02:59.7]} 2. g3 {[%clk 0:03:01.3]}
2... g6 {[%clk 0:03:00.2]} 3. b3 {[%clk 0:03:00.3]} 3... Bg7 {[%clk 0:03:00.6]}
4. Bb2 {[%clk 0:03:00.9]} 4... O-O {[%clk 0:03:01]} 5. Bg2 {[%clk 0:03:01.4]}
5... d6 {[%clk 0:03:01.4]} 6. c4 {[%clk 0:02:55.1]} 6... e5 {[%clk 0:03:01.4]}
7. d3 {[%clk 0:02:52.3]} 7... Nbd7 {[%clk 0:03:01.4]} 8. O-O {[%clk 0:02:52.7]}
8... Nc5 {[%clk 0:03:01.4]} 9. b4 {[%clk 0:02:49.9]} 9... e4 {[%clk 0:02:55.9]}
10. Nfd2 {[%clk 0:02:42.7]} 10... Ne6 {[%clk 0:02:45.8]} 11. dxe4 {[%clk
0:02:32]} 11... a5 {[%clk 0:02:42.8]} 12. a3 {[%clk 0:02:24.5]} 12... Re8 {[%clk
0:02:11.3]} 13. Nc3 {[%clk 0:02:24.1]} 13... c6 {[%clk 0:02:05.6]} 14. b5 {[%clk
0:01:54]} 14... Nc5 {[%clk 0:02:00.3]} 15. Qc2 {[%clk 0:01:44.3]} 15... a4
{[%clk 0:01:44.1]} 16. Rad1 {[%clk 0:01:44.1]} 16... Qa5 {[%clk 0:01:28.8]} 17.
Nf3 {[%clk 0:01:05.9]} 17... Be6 {[%clk 0:01:11.5]} 18. Rxd6 {[%clk 0:00:57.5]}
18... Bxc4 {[%clk 0:01:11.1]} 19. e5 {[%clk 0:00:55.8]} 19... Nd5 {[%clk
0:01:04.6]} 20. bxc6 {[%clk 0:00:52.5]} 20... Bb3 {[%clk 0:00:38.3]} 21. Qd2
{[%clk 0:00:52.8]} 21... bxc6 {[%clk 0:00:36.6]} 22. Rxc6 {[%clk 0:00:48.6]}
22... Nb6 {[%clk 0:00:20.4]} 23. Qd4 {[%clk 0:00:40.5]} 23... Rac8 {[%clk
0:00:17]} 24. Rxc8 {[%clk 0:00:33.2]} 24... Rxc8 {[%clk 0:00:17.9]} 25. Ne4
{[%clk 0:00:25.3]} 25... Nxe4 {[%clk 0:00:14.3]} 26. Qxe4 {[%clk 0:00:26.2]}
26... Nc4 {[%clk 0:00:15]} 27. Rc1 {[%clk 0:00:19.2]} 27... Qd8 {[%clk
0:00:05.3]} 28. h4 {[%clk 0:00:16.5]} 28... Nxb2 {[%clk 0:00:05.3]} 29. Rxc8
{[%clk 0:00:13.8]} 29... Qxc8 {[%clk 0:00:06.2]} 30. Ng5 {[%clk 0:00:11.3]}
30... h6 {[%clk 0:00:06.6]} 31. e6 {[%clk 0:00:07.1]} 31... hxg5 {[%clk
0:00:06]} 32. e7 {[%clk 0:00:07.8]} 32... Be6 {[%clk 0:00:03.8]} 33. Qc6 {[%clk
0:00:06.9]} 33... Qd7 {[%clk 0:00:02]} 34. e8=Q+ {[%clk 0:00:06.3]} 34... Qxe8
{[%clk 0:00:01.9]} 35. Qxe8+ {[%clk 0:00:07.2]} 35... Kh7 {[%clk 0:00:02.7]} 36.
hxg5 {[%clk 0:00:07.5]} 36... Nc4 {[%clk 0:00:03.2]} 37. Qc6 {[%clk 0:00:06.9]}
37... Nxa3 {[%clk 0:00:03.3]} 38. Bd5 {[%clk 0:00:07.4]} 38... Bxd5 {[%clk
0:00:02.1]} 39. Qxd5 {[%clk 0:00:08.3]} 39... Nc2 {[%clk 0:00:02.7]} 40. Qa2
{[%clk 0:00:08.4]} 40... Nd4 {[%clk 0:00:03]} 41. e3 {[%clk 0:00:07.1]} 41...
Ne2+ {[%clk 0:00:03]} 42. Kf1 {[%clk 0:00:07.1]} 42... Nc3 {[%clk 0:00:03.9]}
43. Qc4 {[%clk 0:00:06.9]} 43... a3 {[%clk 0:00:04]} 44. Qb3 {[%clk 0:00:06.1]}
44... a2 {[%clk 0:00:04.4]} 45. Qb2 {[%clk 0:00:06.1]} 45... Kg8 {[%clk
0:00:02.1]} 46. f4 {[%clk 0:00:06.3]} 46... Kh7 {[%clk 0:00:02.4]} 47. e4 {[%clk
0:00:06.9]} 47... Nxe4 {[%clk 0:00:01.9]} 48. Qxa2 {[%clk 0:00:07.2]} 48...
Nxg3+ {[%clk 0:00:02.6]} 49. Kg2 {[%clk 0:00:07.9]} 49... Nh5 {[%clk 0:00:02.7]}
50. Kf3 {[%clk 0:00:07.4]} 50... f6 {[%clk 0:00:03.3]} 51. Qf7 {[%clk 0:00:07]}
51... fxg5 {[%clk 0:00:03.6]} 52. fxg5 {[%clk 0:00:07.9]} 52... Kh8 {[%clk
0:00:03.5]} 53. Qxg6 {[%clk 0:00:07.5]} 1-0

[Event "Late-Titled-Tuesday-Blitz-December-26-2023"]
[Site "Chess.com"]
[Date "2023.12.26"]
[Round "6"]
[White "dmarcolino"]
[Black "GoValya"]
[Result "1/2-1/2"]
[WhiteElo "2124"]
[BlackElo "2300"]
[TimeControl "180+1"]
[EndTime "15:07:37 PST"]
[Termination "Game drawn by repetition"]

1. d4 {[%clk 0:03:00.9]} 1... Nf6 {[%clk 0:02:58.7]} 2. c4 {[%clk 0:03:00.6]}
2... c5 {[%clk 0:02:55.6]} 3. d5 {[%clk 0:03:00.5]} 3... d6 {[%clk 0:02:54.6]}
4. Nc3 {[%clk 0:03:00.1]} 4... g6 {[%clk 0:02:54.5]} 5. e4 {[%clk 0:02:59.9]}
5... e6 {[%clk 0:02:48.9]} 6. h3 {[%clk 0:02:59.1]} 6... exd5 {[%clk 0:02:48.3]}
7. exd5 {[%clk 0:02:54]} 7... Bg7 {[%clk 0:02:47.8]} 8. Nf3 {[%clk 0:02:53.4]}
8... O-O {[%clk 0:02:47.8]} 9. Bd3 {[%clk 0:02:54]} 9... Re8+ {[%clk 0:02:47.5]}
10. Be3 {[%clk 0:02:53]} 10... Nbd7 {[%clk 0:01:51.7]} 11. O-O {[%clk
0:02:50.8]} 11... a6 {[%clk 0:01:52.1]} 12. a4 {[%clk 0:02:45.5]} 12... b6
{[%clk 0:01:44]} 13. Bf4 {[%clk 0:02:45.3]} 13... Qc7 {[%clk 0:01:42.9]} 14. Qd2
{[%clk 0:02:42.5]} 14... Nh5 {[%clk 0:01:21.6]} 15. Bh2 {[%clk 0:02:22.4]} 15...
Ne5 {[%clk 0:01:17.8]} 16. Nxe5 {[%clk 0:02:21]} 16... Bxe5 {[%clk 0:01:03.5]}
17. Bxe5 {[%clk 0:02:19.2]} 17... dxe5 {[%clk 0:00:52.5]} 18. Ne4 {[%clk
0:01:57.7]} 18... Qd8 {[%clk 0:00:33.3]} 19. Ng5 {[%clk 0:00:55.9]} 19... Nf4
{[%clk 0:00:26.5]} 20. h4 {[%clk 0:00:29.6]} 20... f5 {[%clk 0:00:16.4]} 21. g3
{[%clk 0:00:21.6]} 21... Nxd3 {[%clk 0:00:16.3]} 22. Qxd3 {[%clk 0:00:21.8]}
22... h6 {[%clk 0:00:16.8]} 23. Nh3 {[%clk 0:00:20.6]} 23... Kg7 {[%clk
0:00:15.4]} 24. f4 {[%clk 0:00:18.8]} 24... e4 {[%clk 0:00:15.1]} 25. Qc3+
{[%clk 0:00:19]} 25... Qf6 {[%clk 0:00:16]} 26. Qxf6+ {[%clk 0:00:18.3]} 26...
Kxf6 {[%clk 0:00:16.9]} 27. b3 {[%clk 0:00:18.3]} 27... Bd7 {[%clk 0:00:17.8]}
28. Rfd1 {[%clk 0:00:17.8]} 28... e3 {[%clk 0:00:17.8]} 29. Re1 {[%clk
0:00:16.6]} 29... Re4 {[%clk 0:00:17.9]} 30. Re2 {[%clk 0:00:16.4]} 30... Rae8
{[%clk 0:00:18]} 31. Rae1 {[%clk 0:00:16.8]} 31... b5 {[%clk 0:00:18.5]} 32.
axb5 {[%clk 0:00:15.5]} 32... axb5 {[%clk 0:00:18.9]} 33. Kg2 {[%clk 0:00:15.7]}
33... bxc4 {[%clk 0:00:18.7]} 34. bxc4 {[%clk 0:00:14.8]} 34... Ba4 {[%clk
0:00:18.2]} 35. Kf3 {[%clk 0:00:14.8]} 35... Bb3 {[%clk 0:00:18.6]} 36. Rxe3
{[%clk 0:00:15.1]} 36... Bxc4 {[%clk 0:00:18.8]} 37. Rxe4 {[%clk 0:00:14.6]}
37... fxe4+ {[%clk 0:00:19.3]} 38. Ke3 {[%clk 0:00:12.9]} 38... Bxd5 {[%clk
0:00:19.7]} 39. Nf2 {[%clk 0:00:12.6]} 39... c4 {[%clk 0:00:19.7]} 40. Ra1
{[%clk 0:00:11]} 40... Re6 {[%clk 0:00:19]} 41. Nd1 {[%clk 0:00:11]} 41... h5
{[%clk 0:00:19.1]} 42. Nc3 {[%clk 0:00:10.8]} 42... Bc6 {[%clk 0:00:19.6]} 43.
Ra5 {[%clk 0:00:07.8]} 43... Rd6 {[%clk 0:00:19.7]} 44. Nxe4+ {[%clk 0:00:06.9]}
44... Bxe4 {[%clk 0:00:17.8]} 45. Kxe4 {[%clk 0:00:07.8]} 45... Rc6 {[%clk
0:00:18.3]} 46. Ra2 {[%clk 0:00:07.7]} 46... Ke6 {[%clk 0:00:17.8]} 47. Rc2
{[%clk 0:00:08]} 47... c3 {[%clk 0:00:16.9]} 48. Kd3 {[%clk 0:00:07.8]} 48...
Kf5 {[%clk 0:00:17.5]} 49. Ke3 {[%clk 0:00:04.1]} 49... Kg4 {[%clk 0:00:17.5]}
50. Kf2 {[%clk 0:00:04.3]} 50... Rc4 {[%clk 0:00:17.8]} 51. Kg2 {[%clk
0:00:04.4]} 51... Rc5 {[%clk 0:00:16.5]} 52. Kf2 {[%clk 0:00:04.8]} 52... Kf5
{[%clk 0:00:16.1]} 53. Kf3 {[%clk 0:00:05]} 53... Rc4 {[%clk 0:00:15.9]} 54. Ke3
{[%clk 0:00:04.9]} 54... Kg4 {[%clk 0:00:16.2]} 55. Kf2 {[%clk 0:00:05.6]} 55...
Rc5 {[%clk 0:00:16.4]} 56. Kg2 {[%clk 0:00:06]} 56... Kf5 {[%clk 0:00:16.3]} 57.
Kf3 {[%clk 0:00:06.7]} 57... Rc6 {[%clk 0:00:16.9]} 58. Ke3 {[%clk 0:00:07.1]}
58... Re6+ {[%clk 0:00:17]} 59. Kf3 {[%clk 0:00:07.7]} 59... Rc6 {[%clk
0:00:17.2]} 60. Ke3 {[%clk 0:00:08.1]} 1/2-1/2

[Event "Late-Titled-Tuesday-Blitz-December-26-2023"]
[Site "Chess.com"]
[Date "2023.12.26"]
[Round "6"]
[White "Alexander_Khlebovich"]
[Black "GP9isback23"]
[Result "1-0"]
[WhiteElo "2774"]
[BlackElo "2634"]
[TimeControl "180+1"]
[EndTime "15:07:41 PST"]
[Termination "Alexander_Khlebovich won by resignation"]

1. d4 {[%clk 0:03:00.9]} 1... Nf6 {[%clk 0:02:59.6]} 2. c4 {[%clk 0:03:01.2]}
2... e6 {[%clk 0:02:59.8]} 3. Nf3 {[%clk 0:03:01.9]} 3... b6 {[%clk 0:02:59.7]}
4. g3 {[%clk 0:03:02.3]} 4... Bb7 {[%clk 0:02:57.5]} 5. Bg2 {[%clk 0:03:02.3]}
5... Be7 {[%clk 0:02:57.8]} 6. O-O {[%clk 0:03:02.2]} 6... O-O {[%clk
0:02:57.9]} 7. Nc3 {[%clk 0:03:02.9]} 7... Ne4 {[%clk 0:02:58]} 8. Qc2 {[%clk
0:03:03.2]} 8... Nxc3 {[%clk 0:02:57]} 9. Qxc3 {[%clk 0:03:04.1]} 9... f5 {[%clk
0:02:43.9]} 10. b3 {[%clk 0:03:03.8]} 10... Bf6 {[%clk 0:02:42.3]} 11. Bb2
{[%clk 0:03:04.1]} 11... d6 {[%clk 0:02:42.4]} 12. Qd2 {[%clk 0:03:03.2]} 12...
Nd7 {[%clk 0:02:37.7]} 13. Rad1 {[%clk 0:03:00.4]} 13... Qe7 {[%clk 0:02:37.4]}
14. Ne1 {[%clk 0:02:59.9]} 14... Bxg2 {[%clk 0:02:31.9]} 15. Nxg2 {[%clk
0:03:00.8]} 15... a5 {[%clk 0:02:21.1]} 16. Nf4 {[%clk 0:02:49.2]} 16... Bg5
{[%clk 0:02:19.3]} 17. Qe3 {[%clk 0:02:49]} 17... Rae8 {[%clk 0:02:15.7]} 18.
Qf3 {[%clk 0:02:41.2]} 18... Bh6 {[%clk 0:01:56.1]} 19. Rfe1 {[%clk 0:02:34.5]}
19... Bxf4 {[%clk 0:01:39.9]} 20. Qxf4 {[%clk 0:02:34.2]} 20... e5 {[%clk
0:01:38.4]} 21. dxe5 {[%clk 0:02:34]} 21... Nxe5 {[%clk 0:01:38.1]} 22. Rd5
{[%clk 0:02:21.8]} 22... Ng6 {[%clk 0:01:25]} 23. Qd2 {[%clk 0:02:21.6]} 23...
f4 {[%clk 0:01:21.2]} 24. Rd3 {[%clk 0:02:10.8]} 24... Qe6 {[%clk 0:01:06.2]}
25. Rf3 {[%clk 0:02:07]} 25... Re7 {[%clk 0:00:38.5]} 26. Qd5 {[%clk 0:01:46.6]}
26... Rf5 {[%clk 0:00:22.5]} 27. Qxe6+ {[%clk 0:01:40.3]} 27... Rxe6 {[%clk
0:00:23.4]} 28. Kf1 {[%clk 0:01:38.1]} 28... Rf8 {[%clk 0:00:20.3]} 29. Rd1
{[%clk 0:01:30.6]} 29... Rfe8 {[%clk 0:00:19.1]} 30. Rd2 {[%clk 0:01:29.9]}
30... Re4 {[%clk 0:00:14.4]} 31. Rfd3 {[%clk 0:01:26.5]} 31... R4e7 {[%clk
0:00:12.8]} 32. a3 {[%clk 0:01:20.5]} 32... Re4 {[%clk 0:00:12.8]} 33. Rd4
{[%clk 0:01:14.4]} 33... Rxd4 {[%clk 0:00:11.8]} 34. Bxd4 {[%clk 0:01:15.3]}
34... fxg3 {[%clk 0:00:12.4]} 35. hxg3 {[%clk 0:01:15.3]} 35... Kf7 {[%clk
0:00:12.2]} 36. b4 {[%clk 0:01:14.1]} 36... axb4 {[%clk 0:00:11.9]} 37. axb4
{[%clk 0:01:15]} 37... Nf8 {[%clk 0:00:10.4]} 38. c5 {[%clk 0:01:13.3]} 38...
bxc5 {[%clk 0:00:10.3]} 39. bxc5 {[%clk 0:01:13.8]} 39... Ne6 {[%clk 0:00:09.7]}
40. cxd6 {[%clk 0:01:13.6]} 40... cxd6 {[%clk 0:00:10.6]} 41. Be3 {[%clk
0:01:11.5]} 41... Rd8 {[%clk 0:00:10.9]} 42. f4 {[%clk 0:01:10.5]} 42... g6
{[%clk 0:00:11.1]} 43. g4 {[%clk 0:01:09.2]} 43... Rd7 {[%clk 0:00:11.3]} 44.
Kf2 {[%clk 0:01:08.7]} 44... Kf6 {[%clk 0:00:11.3]} 45. Kf3 {[%clk 0:01:08.1]}
45... h5 {[%clk 0:00:11.6]} 46. gxh5 {[%clk 0:01:07.5]} 46... gxh5 {[%clk
0:00:12.5]} 47. Bf2 {[%clk 0:01:07.9]} 47... d5 {[%clk 0:00:12.5]} 48. Bh4+
{[%clk 0:01:03.3]} 48... Kf5 {[%clk 0:00:12.8]} 49. Rxd5+ {[%clk 0:01:03.1]}
49... Rxd5 {[%clk 0:00:12.8]} 50. e4+ {[%clk 0:01:03.5]} 50... Kg6 {[%clk
0:00:13]} 51. exd5 {[%clk 0:01:04]} 51... Nc5 {[%clk 0:00:11.5]} 52. Be7 {[%clk
0:01:01.6]} 52... Nd7 {[%clk 0:00:09.4]} 53. Ke4 {[%clk 0:01:01.8]} 53... Kf7
{[%clk 0:00:03.7]} 54. Bh4 {[%clk 0:01:01.6]} 54... Kg6 {[%clk 0:00:04.2]} 55.
f5+ {[%clk 0:01:01.5]} 55... Kf7 {[%clk 0:00:04.7]} 56. d6 {[%clk 0:01:00.9]}
56... Nc5+ {[%clk 0:00:02.5]} 57. Kd5 {[%clk 0:01:01.3]} 57... Nd7 {[%clk
0:00:02.7]} 58. Kc6 {[%clk 0:00:44.7]} 58... Ke8 {[%clk 0:00:02.9]} 59. f6
{[%clk 0:00:35.4]} 59... Ne5+ {[%clk 0:00:02.4]} 60. Kc7 {[%clk 0:00:35.3]}
60... Kf7 {[%clk 0:00:01.7]} 61. d7 {[%clk 0:00:35.2]} 61... Nxd7 {[%clk
0:00:01.7]} 62. Kxd7 {[%clk 0:00:36.1]} 62... Kg6 {[%clk 0:00:02]} 63. Ke6
{[%clk 0:00:36.2]} 63... Kh7 {[%clk 0:00:01.6]} 64. f7 {[%clk 0:00:36.3]} 1-0

[Event "Late-Titled-Tuesday-Blitz-December-26-2023"]
[Site "Chess.com"]
[Date "2023.12.26"]
[Round "6"]
[White "Maect19"]
[Black "almaguerjm"]
[Result "1/2-1/2"]
[WhiteElo "2358"]
[BlackElo "2479"]
[TimeControl "180+1"]
[EndTime "15:07:54 PST"]
[Termination "Game drawn - insufficient material"]

1. Nf3 {[%clk 0:03:00.9]} 1... d5 {[%clk 0:02:52]} 2. e3 {[%clk 0:02:58.6]} 2...
e6 {[%clk 0:02:51]} 3. c4 {[%clk 0:02:58.6]} 3... Nf6 {[%clk 0:02:48.9]} 4. Nc3
{[%clk 0:02:58.7]} 4... Nbd7 {[%clk 0:02:48.6]} 5. b3 {[%clk 0:02:58.6]} 5...
Bb4 {[%clk 0:02:45.2]} 6. Bb2 {[%clk 0:02:58.3]} 6... O-O {[%clk 0:02:44.9]} 7.
Be2 {[%clk 0:02:58.4]} 7... c5 {[%clk 0:02:45]} 8. O-O {[%clk 0:02:57.9]} 8...
Re8 {[%clk 0:02:35.7]} 9. a3 {[%clk 0:02:56.6]} 9... Ba5 {[%clk 0:02:33.5]} 10.
Qc2 {[%clk 0:02:54.8]} 10... Bb6 {[%clk 0:02:25.4]} 11. Na4 {[%clk 0:02:45.9]}
11... Qc7 {[%clk 0:02:17.6]} 12. Rac1 {[%clk 0:02:39.3]} 12... dxc4 {[%clk
0:02:13.7]} 13. Nxb6 {[%clk 0:02:32.2]} 13... Nxb6 {[%clk 0:02:00.6]} 14. bxc4
{[%clk 0:02:31.5]} 14... Bd7 {[%clk 0:01:56.7]} 15. Ne5 {[%clk 0:02:26.2]} 15...
Ba4 {[%clk 0:01:53.8]} 16. Qc3 {[%clk 0:02:17.3]} 16... Bc6 {[%clk 0:01:48.6]}
17. Nxc6 {[%clk 0:02:15]} 17... Qxc6 {[%clk 0:01:47.5]} 18. Bf3 {[%clk
0:02:14.4]} 18... Qc7 {[%clk 0:01:44.4]} 19. Qb3 {[%clk 0:02:09.6]} 19... Rad8
{[%clk 0:01:42]} 20. Rfd1 {[%clk 0:02:09.1]} 20... e5 {[%clk 0:01:41.6]} 21. h3
{[%clk 0:01:57]} 21... e4 {[%clk 0:01:31.2]} 22. Be2 {[%clk 0:01:55.5]} 22...
Qc6 {[%clk 0:01:23.8]} 23. d4 {[%clk 0:01:45.7]} 23... h6 {[%clk 0:01:01.5]} 24.
d5 {[%clk 0:01:23.9]} 24... Qd6 {[%clk 0:00:51.9]} 25. a4 {[%clk 0:01:23.4]}
25... Nbd7 {[%clk 0:00:48.8]} 26. Bc3 {[%clk 0:01:18.8]} 26... b6 {[%clk
0:00:47.2]} 27. a5 {[%clk 0:01:16.9]} 27... Ra8 {[%clk 0:00:44.9]} 28. Ra1
{[%clk 0:01:15.7]} 28... Reb8 {[%clk 0:00:43.7]} 29. axb6 {[%clk 0:01:14.5]}
29... Rxb6 {[%clk 0:00:40.2]} 30. Qc2 {[%clk 0:01:14.3]} 30... Ne5 {[%clk
0:00:37.4]} 31. Rdb1 {[%clk 0:01:11.1]} 31... Rab8 {[%clk 0:00:34.3]} 32. Rxb6
{[%clk 0:01:06.1]} 32... axb6 {[%clk 0:00:35.2]} 33. Ra6 {[%clk 0:00:56.2]}
33... Ned7 {[%clk 0:00:28.9]} 34. Qb1 {[%clk 0:00:50.9]} 34... Qf8 {[%clk
0:00:27.8]} 35. Bxf6 {[%clk 0:00:46.8]} 35... gxf6 {[%clk 0:00:28.7]} 36. Bg4
{[%clk 0:00:44.1]} 36... Ne5 {[%clk 0:00:23.2]} 37. Qxe4 {[%clk 0:00:43.4]}
37... Kg7 {[%clk 0:00:20.9]} 38. f4 {[%clk 0:00:40.6]} 38... Ng6 {[%clk
0:00:21.1]} 39. Ra3 {[%clk 0:00:30.1]} 39... Qd6 {[%clk 0:00:20.9]} 40. Qf3
{[%clk 0:00:28.6]} 40... b5 {[%clk 0:00:21]} 41. cxb5 {[%clk 0:00:27.9]} 41...
Rxb5 {[%clk 0:00:21.9]} 42. e4 {[%clk 0:00:26.3]} 42... Nxf4 {[%clk 0:00:17.8]}
43. Bf5 {[%clk 0:00:24.2]} 43... Rb1+ {[%clk 0:00:16.4]} 44. Kh2 {[%clk
0:00:21.9]} 44... Ne2+ {[%clk 0:00:16.3]} 45. g3 {[%clk 0:00:20.7]} 45... Rb2
{[%clk 0:00:16.6]} 46. Qg4+ {[%clk 0:00:19.4]} 46... Kf8 {[%clk 0:00:17.1]} 47.
Ra8+ {[%clk 0:00:17.8]} 47... Ke7 {[%clk 0:00:17.5]} 48. Ra7+ {[%clk 0:00:18]}
48... Kf8 {[%clk 0:00:17.7]} 49. Ra8+ {[%clk 0:00:18]} 49... Rb8 {[%clk
0:00:17.7]} 50. Rxb8+ {[%clk 0:00:17.8]} 50... Qxb8 {[%clk 0:00:18.6]} 51. Qxe2
{[%clk 0:00:17.5]} 51... Qb3 {[%clk 0:00:18.3]} 52. d6 {[%clk 0:00:17.1]} 52...
Qb6 {[%clk 0:00:16.7]} 53. d7 {[%clk 0:00:17.2]} 53... Ke7 {[%clk 0:00:16.9]}
54. Qd2 {[%clk 0:00:16.5]} 54... c4 {[%clk 0:00:16.6]} 55. h4 {[%clk 0:00:16.7]}
55... Qc7 {[%clk 0:00:15.2]} 56. d8=Q+ {[%clk 0:00:16.5]} 56... Qxd8 {[%clk
0:00:15.3]} 57. Qxd8+ {[%clk 0:00:17]} 57... Kxd8 {[%clk 0:00:16.2]} 58. e5
{[%clk 0:00:16.3]} 58... fxe5 {[%clk 0:00:16.4]} 59. g4 {[%clk 0:00:16.4]} 59...
Ke7 {[%clk 0:00:16.8]} 60. g5 {[%clk 0:00:16.8]} 60... hxg5 {[%clk 0:00:16.5]}
61. hxg5 {[%clk 0:00:16.3]} 61... Kd6 {[%clk 0:00:15.3]} 62. Kg3 {[%clk
0:00:15.7]} 62... Kd5 {[%clk 0:00:15.9]} 63. Kf3 {[%clk 0:00:16.3]} 63... Kd4
{[%clk 0:00:16.2]} 64. Ke2 {[%clk 0:00:16.5]} 64... e4 {[%clk 0:00:16.4]} 65.
Kd2 {[%clk 0:00:16.7]} 65... Ke5 {[%clk 0:00:16.8]} 66. Bh7 {[%clk 0:00:15.4]}
66... Kf4 {[%clk 0:00:16.9]} 67. g6 {[%clk 0:00:15.4]} 67... e3+ {[%clk
0:00:16.7]} 68. Ke2 {[%clk 0:00:15.1]} 68... fxg6 {[%clk 0:00:17.3]} 69. Bxg6
{[%clk 0:00:14.5]} 69... Kg5 {[%clk 0:00:17.8]} 70. Bc2 {[%clk 0:00:14]} 70...
Kf4 {[%clk 0:00:18.3]} 71. Bb1 {[%clk 0:00:14]} 71... c3 {[%clk 0:00:18.1]} 72.
Bc2 {[%clk 0:00:14.3]} 72... Ke5 {[%clk 0:00:17.9]} 73. Kxe3 {[%clk 0:00:14.8]}
73... Kd5 {[%clk 0:00:18.3]} 74. Kd3 {[%clk 0:00:15.5]} 74... Kc5 {[%clk
0:00:19.2]} 75. Kxc3 {[%clk 0:00:16]} 1/2-1/2